fUST/lending_fUST_20240501
["ID","MTS","AMOUNT","RATE_DAILY","PERIOD"]
[325071176,1714511443914,-500.0,0.00032876,2]
[325071177,1714511443923,-500.0,0.00032876,2]
[325071180,1714511443934,-500.0,0.00032876,2]
[325071182,1714511443943,-500.0,0.00032876,2]
[325071184,1714511443952,-500.0,0.00032876,2]
[325071186,1714511443961,-500.0,0.00032876,2]
[325071188,1714511443970,-500.0,0.00032876,2]
[325071190,1714511443979,-500.0,0.00032876,2]
[325071192,1714511443988,-500.0,0.00032876,2]
[325071193,1714511443997,-500.0,0.00032876,2]
[325071195,1714511444006,-500.0,0.00032876,2]
[325071197,1714511444020,-500.0,0.00032876,2]
[325071199,1714511444030,-500.0,0.00032876,2]
[325071201,1714511444040,-500.0,0.00032876,2]
[325071203,1714511444049,-500.0,0.00032876,2]
[325071205,1714511444059,-500.0,0.00032876,2]
[325071208,1714511444068,-500.0,0.00032876,2]
[325071209,1714511444078,-500.0,0.00032876,2]
[325071211,1714511444087,-500.0,0.00032876,2]
[325071213,1714511444096,-500.0,0.00032876,2]
[325071215,1714511444105,-500.0,0.00032876,2]
[325071217,1714511444115,-500.0,0.00032876,2]
[325071219,1714511444124,-500.0,0.00032876,2]
[325071221,1714511444134,-500.0,0.00032876,2]
[325071224,1714511444143,-500.0,0.00032876,2]
[325071226,1714511444152,-500.0,0.00032876,2]
[325071227,1714511444162,-500.0,0.00032876,2]
[325071229,1714511444171,-201.88474769,0.00032876,2]
[325071231,1714511444180,-500.0,0.00032876,2]
[325071233,1714511444189,-500.0,0.00032876,2]
[325071235,1714511444198,-354.04,0.00032876,2]
[325071237,1714511444207,-500.0,0.00032876,2]
[325071239,1714511444217,-500.0,0.00032876,2]
[325071241,1714511444226,-536.57,0.00032876,2]
[325071243,1714511444235,-500.0,0.00032876,2]
[325071245,1714511444244,-520.9,0.00032876,2]
[325071247,1714511444253,-500.0,0.00032876,2]
[325071250,1714511444263,-500.0,0.00032876,2]
[325071251,1714511444273,-500.0,0.00032876,2]
[325071253,1714511444282,-500.0,0.00032876,2]
[325071255,1714511444292,-999.0,0.00032876,7]
[325071258,1714511444301,-999.0,0.00032876,10]
[325071259,1714511444311,-999.0,0.00032876,13]
[325071262,1714511444320,-161.13,0.00032876,16]
[325071264,1714511444329,-500.0,0.00032876,2]
[325071265,1714511444339,-500.0,0.00032876,2]
[325071267,1714511444348,-500.0,0.00032876,2]
[325071270,1714511444358,-524.48976444,0.00032876,2]
[325071271,1714511444367,-500.0,0.00032876,2]
[325071273,1714511444376,-500.0,0.00032876,2]
[325071275,1714511444386,-500.0,0.00032876,2]
[325071277,1714511444395,-500.0,0.00032876,2]
[325071279,1714511444404,-500.0,0.00032876,2]
[325071281,1714511444413,-500.0,0.00032876,2]
[325071283,1714511444422,-500.0,0.00032876,2]
[325071285,1714511444431,-500.0,0.00032876,2]
[325071287,1714511444440,-500.0,0.00032876,2]
[325071289,1714511444449,-472.32135427,0.00032876,2]
[325071291,1714511444458,-500.0,0.00032876,2]
[325071293,1714511444467,-500.0,0.00032876,2]
[325071295,1714511444477,-500.0,0.00032876,2]
[325071297,1714511444486,-523.08153758,0.00033,2]
[325071299,1714511444495,-160.0,0.00033062,2]
[325071301,1714511444504,-160.382365,0.00033128,2]
[325071303,1714511444513,-500.0,0.0003315,7]
[325071305,1714511444522,-500.0,0.0003315,7]
[325071307,1714511444532,-264.45,0.0003315,7]
[325071309,1714511444542,-485.43,0.0003315,7]
[325071311,1714511444551,-500.0,0.0003315,7]
[325071313,1714511444561,-500.0,0.0003315,7]
[325071315,1714511444570,-166.64,0.0003315,7]
[325071317,1714511444580,-500.0,0.0003315,7]
[325071319,1714511444590,-170.12,0.0003315,7]
[325071321,1714511444599,-500.0,0.0003315,7]
[325071323,1714511444609,-500.0,0.0003315,7]
[325071325,1714511444619,-333.69,0.0003315,7]
[325071327,1714511444628,-500.0,0.0003315,7]
[325071329,1714511444637,-500.0,0.0003315,7]
[325071331,1714511444648,-500.0,0.0003315,7]
[325071333,1714511444657,-500.0,0.0003315,7]
[325071335,1714511444666,-500.0,0.0003315,7]
[325071337,1714511444676,-500.0,0.0003315,7]
[325071339,1714511444685,-500.0,0.0003315,7]
[325071341,1714511444695,-500.0,0.0003315,7]
[325071343,1714511444705,-500.0,0.0003315,7]
[325071346,1714511444714,-513.51,0.0003315,7]
[325071348,1714511444724,-500.0,0.0003315,7]
[325071350,1714511444735,-500.0,0.0003315,7]
[325071352,1714511444746,-500.0,0.0003315,7]
[325071354,1714511444755,-607.15,0.0003315,7]
[325071356,1714511444764,-500.0,0.0003315,7]
[325071358,1714511444773,-500.0,0.0003315,7]
[325071360,1714511444783,-500.0,0.0003315,7]
[325071362,1714511444793,-500.0,0.0003315,7]
[325071364,1714511444801,-500.0,0.0003315,7]
[325071365,1714511444812,-520.9,0.0003315,7]
[325071368,1714511444822,-500.0,0.0003315,7]
[325071369,1714511444832,-500.0,0.0003315,7]
[325071372,1714511444844,-500.0,0.0003315,7]
[325071373,1714511444855,-611.37683608,0.0003315,7]
[325071375,1714511444865,-508.16,0.0003315,7]
[325071378,1714511444875,-500.0,0.0003315,7]
[325071379,1714511444884,-500.0,0.0003315,7]
[325071382,1714511444894,-500.0,0.0003315,7]
[325071384,1714511444904,-500.0,0.0003315,7]
[325071386,1714511444913,-500.0,0.0003315,7]
[325071388,1714511444922,-500.0,0.0003315,7]
[325071390,1714511444931,-500.0,0.0003315,7]
[325071392,1714511444940,-500.0,0.0003315,7]
[325071394,1714511444950,-500.0,0.0003315,7]
[325071396,1714511444959,-500.0,0.0003315,7]
[325071398,1714511444969,-500.0,0.0003315,7]
[325071400,1714511444978,-500.0,0.0003315,7]
[325071402,1714511444987,-500.0,0.00033424,7]
[325071404,1714511444997,-500.0,0.00033424,7]
[325071406,1714511445006,-500.0,0.00033424,7]
[325071408,1714511445020,-401.96,0.00033424,7]
[325071410,1714511445030,-500.0,0.00033424,7]
[325071412,1714511445041,-500.0,0.00033424,7]
[325071414,1714511445051,-500.0,0.00033424,7]
[325071416,1714511445061,-491.26,0.00033424,7]
[325071418,1714511445071,-500.0,0.00033424,7]
[325071420,1714511445081,-500.0,0.00033424,7]
[325071422,1714511445090,-500.0,0.00033424,7]
[325071423,1714511445101,-500.0,0.00033424,7]
[325071424,1714511445111,-534.56,0.00033424,7]
[325071425,1714511445120,-423.64,0.00033424,7]
[325071426,1714511445129,-500.0,0.00033424,7]
[325071427,1714511445139,-500.0,0.00033424,7]
[325071428,1714511445148,-173.34,0.00033424,7]
[325071429,1714511445158,-520.9,0.00033424,7]
[325071431,1714511445167,-500.0,0.00033424,7]
[325071433,1714511445176,-500.0,0.00033424,7]
[325071435,1714511445186,-500.0,0.00033424,7]
[325071437,1714511445196,-500.0,0.00033424,7]
[325071439,1714511445205,-500.0,0.00033424,7]
[325071442,1714511445215,-500.0,0.00033424,7]
[325071443,1714511445224,-500.0,0.00033424,7]
[325071446,1714511445234,-500.0,0.00033424,7]
[325071448,1714511445245,-500.0,0.00033424,7]
[325071450,1714511445255,-500.0,0.00033424,7]
[325071452,1714511445264,-500.0,0.00033424,7]
[325071454,1714511445274,-500.0,0.00033424,7]
[325071456,1714511445283,-500.0,0.00033424,7]
[325071458,1714511445295,-320.0,0.0003361,2]
[325071460,1714511445304,-500.0,0.00033698,7]
[325071462,1714511445314,-500.0,0.00033698,7]
[325071464,1714511445323,-470.98,0.00033698,7]
[325071466,1714511445334,-500.0,0.00033698,7]
[325071468,1714511445345,-204.39,0.00033698,7]
[325071470,1714511445354,-500.0,0.00033698,7]
[325071472,1714511445364,-474.62,0.00033698,7]
[325071475,1714511445374,-500.0,0.00033698,7]
[325071477,1714511445383,-500.0,0.00033698,7]
[325071479,1714511445393,-500.0,0.00033698,7]
[325071481,1714511445402,-356.4,0.00033698,7]
[325071483,1714511445411,-500.0,0.00033698,7]
[325071485,1714511445420,-520.9,0.00033698,7]
[325071488,1714511445429,-611.32,0.00033698,7]
[325071491,1714511445439,-472.4,0.00033698,7]
[325071494,1714511445449,-500.0,0.00033698,7]
[325071496,1714511445459,-500.0,0.00033698,7]
[325071498,1714511445468,-500.0,0.00033698,7]
[325071501,1714511445479,-595.06755199,0.00033698,7]
[325071503,1714511445489,-500.0,0.00033698,7]
[325071505,1714511445499,-176.21774259,0.00033698,7]
[325071507,1714511445509,-166.24,0.00033698,7]
[325071509,1714511445518,-500.0,0.00033698,7]
[325071512,1714511445528,-150.0,0.00033875,2]
[325071514,1714511445538,-500.0,0.00033972,7]
[325071516,1714511445547,-500.0,0.00033972,7]
[325071518,1714511445556,-497.58,0.00033972,7]
[325071521,1714511445565,-574.6914966,0.00033972,7]
[325071523,1714511445575,-500.0,0.00033972,7]
[325071526,1714511445584,-223.21,0.00033972,7]
[325071528,1714511445593,-500.0,0.00033972,7]
[325071530,1714511445602,-500.0,0.00033972,7]
[325071532,1714511445612,-520.9,0.00033972,7]
[325071534,1714511445621,-500.0,0.00033972,7]
[325071536,1714511445631,-500.0,0.00033972,7]
[325071538,1714511445640,-500.0,0.00033972,7]
[325071540,1714511445649,-500.0,0.00033972,7]
[325071542,1714511445659,-466.43678541,0.00034,4]
[325071544,1714511445668,-500.0,0.00034246,7]
[325071546,1714511445678,-508.31,0.00034246,7]
[325071548,1714511445687,-500.0,0.00034246,7]
[325071550,1714511445696,-500.0,0.00034246,7]
[325071552,1714511445706,-500.0,0.00034246,7]
[325071554,1714511445715,-520.9,0.00034246,7]
[325071556,1714511445724,-500.0,0.00034246,7]
[325071558,1714511445734,-173.75375556,0.00034246,7]
[325071561,1714511445744,-500.0,0.00034246,7]
[325071564,1714511445753,-500.0,0.00034246,7]
[325071567,1714511445763,-187.928216,0.00034307,2]
[325071570,1714511445772,-500.0,0.0003452,7]
[325071573,1714511445781,-406.26,0.0003452,7]
[325071576,1714511445792,-438.07,0.0003452,7]
[325071578,1714511445801,-218.77,0.0003452,7]
[325071581,1714511445811,-520.9,0.0003452,7]
[325071583,1714511445820,-216.65130462,0.0003452,7]
[325071585,1714511445830,-348.19,0.0003452,7]
[325071587,1714511445839,-500.0,0.0003452,7]
[325071589,1714511445848,-225.598459,0.00034521,2]
[325071591,1714511445858,-150.0,0.00034552,3]
[325071593,1714511445867,-475.77,0.00034794,7]
[325071595,1714511445876,-520.9,0.00034794,7]
[325071597,1714511445885,-500.0,0.00034794,7]
[325071599,1714511445894,-150.0,0.00034875,2]
[325071601,1714511445904,-26908.90743252,0.000349,2]
[325071603,1714511445913,-5916.15000564,0.00035,4]
[325071605,1714511445922,-854.20368441,0.00035,2]
[325071607,1714511445932,-257.56423254,0.00035,4]
[325071609,1714511445941,-474.82426074,0.00035,30]
[325071611,1714511445951,-520.9,0.00035068,7]
[325071613,1714511445962,-500.0,0.00035068,7]
[325071615,1714511445971,-520.9,0.00035342,7]
[325071617,1714511445980,-500.0,0.00035342,7]
[325071619,1714511445990,-1138.221058,0.000356,19]
[325071621,1714511445999,-520.9,0.00035616,7]
[325071623,1714511446009,-500.0,0.00035616,7]
[325071625,1714511446023,-22063.88289097,0.00035687,7]
[325071627,1714511446032,-555.68074581,0.00035687,2]
[325071630,1714511446045,-11999.999999,0.00035687,30]
[325071632,1714511446053,-233.0,0.00035687,30]
[325071634,1714511446063,-2130.63789699,0.00035687,2]
[325071636,1714511446072,-2868.04223041,0.00035687,2]
[325071638,1714511446080,-1003.5114668,0.00035687,2]
[325071640,1714511446090,-153.40602022,0.00035687,2]
[325071642,1714511446100,-3943.94907591,0.00035687,7]
[325071644,1714511446110,-520.9,0.0003589,7]
[325071646,1714511446119,-500.0,0.0003589,7]
[325071648,1714511446129,-187.928216,0.00036022,2]
[325071650,1714511446138,-520.9,0.00036164,7]
[325071652,1714511446147,-500.0,0.00036164,7]
[325071654,1714511446157,-520.9,0.00036438,7]
[325071656,1714511446166,-500.0,0.00036438,7]
[325071658,1714511446176,-150.0,0.00036686,2]
[325071660,1714511446185,-520.9,0.00036712,7]
[325071662,1714511446195,-500.0,0.00036712,7]
[325071664,1714511446204,-520.9,0.00036986,7]
[325071666,1714511446214,-500.0,0.00036986,7]
[325071668,1714511446223,-2048.94915237,0.00037,2]
[325071670,1714511446233,-520.9,0.0003726,7]
[325071672,1714511446243,-500.0,0.0003726,7]
[325071683,1714511446339,-520.9,0.00037534,7]
[325071686,1714511446349,-500.0,0.00037534,7]
[325071688,1714511446359,-520.9,0.00037808,7]
[325071690,1714511446368,-152.73,0.00037808,7]
[325071692,1714511446378,-520.91,0.00038082,7]
[325071694,1714511446387,-150.78889555,0.00038291,2]
[325071696,1714511446396,-301.57779109,0.00038935,4]
[325071698,1714511446406,-150.0,0.00039097,3]
[325071700,1714511446415,-478.0,0.000394,2]
[325071702,1714511446425,-603.15558218,0.00039589,7]
[325071704,1714511446434,-1495.05719491,0.0004,30]
[325071706,1714511446444,-729.48444103,0.0004,2]
[325071708,1714511446452,-995.34373713,0.0004,10]
[325071710,1714511446462,-12114.76,0.00040129,2]
[325071712,1714511446471,-12114.76,0.00040129,2]
[325071714,1714511446480,-12114.76,0.00040129,2]
[325071716,1714511446489,-12114.76,0.00040129,2]
[325071718,1714511446499,-12114.76,0.00040129,2]
[325071720,1714511446509,-132905.59556639,0.0004013,2]
[325071722,1714511446518,-225.598459,0.00040548,2]
[325071724,1714511446527,-436.25,0.00040657,2]
[325071726,1714511446536,-379.09585034,0.00041,2]
[325071728,1714511446549,-154.76784823,0.0004234,10]
[325071730,1714511446559,-150.0,0.00043642,3]
[325071732,1714511446568,-417.0,0.00043657,2]
[325071734,1714511446578,-7949.7620179,0.00043836,120]
[325071737,1714511446588,-8766.17390386,0.00045,120]
[325071739,1714511446597,-159.700896,0.0004537,2]
[325071741,1714511446607,-154.76784823,0.000459,4]
[325071742,1714511446616,-1688.0,0.00046,120]
[325071745,1714511446627,-225.598459,0.00046575,2]
[325071746,1714511446636,-160.56509,0.00046575,2]
[325071748,1714511446646,-150.0,0.00048186,3]
[325071750,1714511446658,-425.45157815,0.00048558,10]
[325071753,1714511446668,-7003.7533283,0.00049,120]
[325071755,1714511446677,-8560.14311984,0.0005,120]
[325071756,1714511446686,-154.76784823,0.0005,30]
[325071758,1714511446695,-225.598459,0.00052603,2]
[325071760,1714511446704,-150.0,0.00052731,5]
[325071762,1714511446713,-182.122785,0.00052852,2]
[325071764,1714511446723,-274.17181981,0.00054795,120]
[325071767,1714511446732,-274.17181981,0.00054795,120]
[325071769,1714511446741,-274.17181981,0.00054795,120]
[325071770,1714511446751,-274.17181981,0.00054795,120]
[325071772,1714511446760,-274.17181981,0.00054795,120]
[325071774,1714511446769,-274.17181981,0.00054795,120]
[325071776,1714511446778,-274.17181981,0.00054795,120]
[325071778,1714511446787,-274.17181981,0.00054795,120]
[325071781,1714511446798,-274.17181981,0.00054795,120]
[325071783,1714511446807,-274.17181981,0.00054795,120]
[325071784,1714511446816,-274.17181981,0.00054795,120]
[325071786,1714511446826,-274.17181981,0.00054795,120]
[325071788,1714511446835,-274.17181981,0.00054795,120]
[325071790,1714511446844,-274.17181981,0.00054795,120]
[325071792,1714511446853,-274.17181981,0.00054795,120]
[325071794,1714511446863,-274.17181981,0.00054795,120]
[325071796,1714511446872,-274.17181981,0.00054795,120]
[325071799,1714511446881,-274.17181981,0.00054795,120]
[325071801,1714511446890,-274.17181981,0.00054795,120]
[325071803,1714511446900,-274.67,0.00054795,120]
[325071804,1714511446909,-1096.76227926,0.00054795,120]
[325071807,1714511446919,-1096.76227926,0.00054795,120]
[325071809,1714511446928,-1096.76227926,0.00054795,120]
[325071811,1714511446938,-1096.76227926,0.00054795,120]
[325071813,1714511446947,-1096.76227926,0.00054795,120]
[325071815,1714511446956,-1096.76227926,0.00054795,120]
[325071817,1714511446966,-1096.76227926,0.00054795,120]
[325071819,1714511446975,-1096.76227926,0.00054795,120]
[325071821,1714511446983,-1096.76227926,0.00054795,120]
[325071823,1714511446992,-1096.76227926,0.00054795,120]
[325071825,1714511447001,-1096.76227926,0.00054795,120]
[325071827,1714511447010,-1096.76227926,0.00054795,120]
[325071829,1714511447022,-1096.76227926,0.00054795,120]
[325071831,1714511447032,-1096.76227926,0.00054795,120]
[325071832,1714511447042,-1096.76227926,0.00054795,120]
[325071835,1714511447051,-1096.76227926,0.00054795,120]
[325071837,1714511447060,-1096.76227926,0.00054795,120]
[325071839,1714511447070,-1096.76227926,0.00054795,120]
[325071841,1714511447079,-1096.76227926,0.00054795,120]
[325071843,1714511447088,-1097.26,0.00054795,120]
[325071845,1714511447098,-589.0,0.000557,30]
[325071846,1714511447109,-150.0,0.00057276,14]
[325071849,1714511447119,-150.78889555,0.00057437,2]
[325071851,1714511447128,-225.598459,0.0005863,2]
[325071853,1714511447137,-150.0,0.00061821,14]
[325071855,1714511447147,-769.2,0.00062648,30]
[325071857,1714511447157,-1469.9745988,0.000633,7]
[325071859,1714511447167,-769.2,0.00064062,30]
[325071861,1714511447176,-225.598459,0.00064658,2]
[325071862,1714511447186,-150.0,0.00066366,30]
[325071865,1714511447195,-300.6281754,0.000669,120]
[325071867,1714511447204,-769.2,0.00067301,60]
[325071869,1714511447213,-159.700896,0.00068274,2]
[325071871,1714511447222,-154.76784823,0.00069,7]
[325071873,1714511447231,-1000.0,0.0006916,120]
[325071874,1714511447240,-500.0,0.0007,120]
[325071875,1714511447249,-769.2,0.00070324,60]
[325071876,1714511447258,-225.598459,0.00070685,120]
[325071877,1714511447268,-150.0,0.0007091,60]
[325071878,1714511447277,-160.56509,0.00073973,2]
[325071879,1714511447287,-769.2,0.00074231,120]
[325071880,1714511447301,-769.2,0.00075691,120]
[325071881,1714511447310,-225.598459,0.00076712,120]
[325071882,1714511447319,-155.52459153,0.00079199,120]
[325071883,1714511447329,-287.0,0.0008,40]
[325071884,1714511447341,-287.0,0.0008,40]
[325071885,1714511447351,-287.0,0.0008,40]
[325071886,1714511447360,-575.0,0.0008,40]
[325071887,1714511447369,-471.0,0.0008,40]
[325071888,1714511447378,-300.0,0.0008,105]
[325071889,1714511447387,-1000.0,0.0008103,120]
[325071890,1714511447397,-317.26169189,0.000815,106]
[325071891,1714511447406,-225.598459,0.0008274,120]
[325071892,1714511447414,-12114.76,0.00084396,60]
[325071893,1714511447424,-12114.76,0.00084396,60]
[325071894,1714511447433,-12114.76,0.00084396,60]
[325071895,1714511447442,-12114.76,0.00084396,60]
[325071896,1714511447451,-12114.76,0.00084396,60]
[325071897,1714511447460,-1000.0,0.00084399,120]
[325071898,1714511447470,-103871.44730691,0.000844,30]
[325071953,1714511448296,-1420.69805246,0.000844,30]
[325071956,1714511448307,-9640.2133319,0.000844,30]
[325071958,1714511448319,-12672.0,0.000844,30]
[325071960,1714511448330,-5589.35557437,0.000844,30]
[325071962,1714511448342,-797.90110162,0.000844,120]
[325071964,1714511448351,-1727.21817169,0.00084695,2]
[325071966,1714511448360,-217.0,0.00084712,120]
[325071968,1714511448369,-2104.67941845,0.00085,120]
[325071991,1714511448578,498.12368999,0.00020913,2]
[325071997,1714511448623,1154.21253416,0.00020912,2]
[325072027,1714511448907,-500.0,0.0003178,2]
[325072029,1714511448916,-500.0,0.0003178,2]
[325072031,1714511448925,-500.0,0.00032054,2]
[325072033,1714511448934,-500.0,0.00032054,2]
[325072035,1714511448943,-500.0,0.00032328,2]
[325072037,1714511448952,-224.28024396,0.00032602,2]
[325072039,1714511448961,-1894.13132817,0.00085,120]
[325072041,1714511448970,-1475.44434386,0.00085,60]
[325072043,1714511448980,-217.0,0.00085342,120]
[325072045,1714511448988,-217.0,0.00085973,120]
[325072047,1714511448998,-180.94667466,0.00086155,4]
[325072049,1714511449007,-217.0,0.00086603,120]
[325072051,1714511449018,-182.122785,0.00087099,120]
[325072053,1714511449029,-217.0,0.00087233,120]
[325072055,1714511449038,-217.0,0.00087863,120]
[325072056,1714511449048,-5459.01462435,0.00088,120]
[325072059,1714511449059,-806.09650558,0.00088,120]
[325072061,1714511449071,-573.57314498,0.00088,120]
[325072063,1714511449082,-7677.68860168,0.00088,120]
[325072065,1714511449092,-217.0,0.00088493,120]
[325072067,1714511449102,-1000.0,0.00088499,90]
[325072069,1714511449112,-1000.0,0.00088499,90]
[325072071,1714511449121,-335.463724,0.00088767,120]
[325072073,1714511449131,-533.598032,0.00088767,120]
[325072075,1714511449140,-225.598459,0.00088767,120]
[325072077,1714511449149,-217.0,0.00089123,120]
[325072079,1714511449158,-217.0,0.00089753,120]
[325072080,1714511449167,-1000.0,0.0009,120]
[325072082,1714511449176,-3998.81074662,0.0009,120]
[325072084,1714511449186,-14401.0492138,0.0009,120]
[325072086,1714511449196,-159.700896,0.00091178,120]
[325072088,1714511449205,-335.463724,0.00094795,120]
[325072090,1714511449215,-533.598032,0.00094795,120]
[325072092,1714511449224,-225.598459,0.00094795,120]
[325072094,1714511449233,-6046.77950059,0.0009488,60]
[325072096,1714511449242,-3998.81074662,0.00095,120]
[325072098,1714511449252,-1231.49259917,0.00097,120]
[325072100,1714511449262,-6837.96862137,0.000975,30]
[325072102,1714511449272,-5000.0,0.0009849,120]
[325072104,1714511449282,-166.165195,0.00098813,120]
[325072106,1714511449292,-999.999999,0.00099,120]
[325072108,1714511449302,-1115.3917784,0.001,120]
[325072111,1714511449312,-500.0,0.001,120]
[325072112,1714511449321,-500.0,0.001,120]
[325072114,1714511449331,-1000.0,0.001,120]
[325072116,1714511449342,-1998.81074662,0.001,120]
[325072118,1714511449352,-5000.0,0.001,5]
[325072120,1714511449361,-217.0,0.001,120]
[325072122,1714511449371,-890.012749,0.001,120]
[325072124,1714511449380,-335.463724,0.00100822,120]
[325072126,1714511449390,-533.598032,0.00100822,120]
[325072128,1714511449399,-225.598459,0.00100822,120]
[325072130,1714511449408,-160.56509,0.0010137,2]
[325072132,1714511449417,-160.382365,0.00101758,2]
[325072134,1714511449427,-335.463724,0.00106849,120]
[325072136,1714511449436,-533.598032,0.00106849,120]
[325072138,1714511449446,-225.598459,0.00106849,120]
[325072140,1714511449455,-1000.0,0.0011041,120]
[325072142,1714511449465,-335.463724,0.00112877,120]
[325072143,1714511449474,-533.598032,0.00112877,120]
[325072145,1714511449485,-225.598459,0.00112877,120]
[325072146,1714511449494,-159.700896,0.00114082,120]
[325072147,1714511449504,-1000.0,0.00115348,90]
[325072148,1714511449514,-1000.0,0.00115348,90]
[325072149,1714511449523,-151.0,0.0011537,120]
[325072150,1714511449533,-166.165195,0.001179,120]
[325072151,1714511449543,-335.463724,0.00118904,120]
[325072152,1714511449553,-533.598032,0.00118904,120]
[325072153,1714511449563,-225.598459,0.00118904,120]
[325072154,1714511449572,-182.122785,0.00121345,120]
[325072155,1714511449581,-409.96236902,0.00124795,120]
[325072156,1714511449590,-335.463724,0.00124932,120]
[325072157,1714511449600,-533.598032,0.00124932,120]
[325072158,1714511449609,-225.598459,0.00124932,120]
[325072159,1714511449619,-160.56509,0.00128767,2]
[325072160,1714511449628,-335.463724,0.00130959,120]
[325072161,1714511449638,-533.598032,0.00130959,120]
[325072162,1714511449647,-225.598459,0.00130959,120]
[325072163,1714511449657,-500.0,0.00136986,120]
[325072164,1714511449667,-500.0,0.00136986,120]
[325072165,1714511449676,-500.0,0.00136986,120]
[325072166,1714511449686,-500.0,0.00136986,120]
[325072167,1714511449695,-500.0,0.00136986,120]
[325072168,1714511449705,-500.0,0.00136986,120]
[325072169,1714511449714,-500.0,0.00136986,120]
[325072171,1714511449723,-501.76875001,0.00136986,120]
[325072172,1714511449732,-335.463724,0.00136986,120]
[325072174,1714511449741,-533.598032,0.00136986,120]
[325072176,1714511449750,-225.598459,0.00136986,120]
[325072178,1714511449760,-159.700896,0.00136986,120]
[325072180,1714511449769,-166.165195,0.00136986,120]
[325072183,1714511449779,-5000.0,0.00139,120]
[325072184,1714511449788,-227.1585515,0.00144055,120]
[325072187,1714511449799,-1688.0,0.00146,120]
[325072189,1714511449809,-203.8071857,0.00146603,120]
[325072190,1714511449818,-203.8071857,0.00146603,120]
[325072192,1714511449827,-1000.0,0.0014706,120]
[325072195,1714511449836,-151.0,0.00148055,120]
[325072197,1714511449846,-1998.81074662,0.0015,120]
[325072198,1714511449855,-198385.06970015,0.0015,120]
[325072200,1714511449864,-1000.0,0.00150684,7]
[325072203,1714511449873,-1000.0,0.00150684,7]
[325072204,1714511449882,-1000.0,0.00150684,7]
[325072206,1714511449892,-1000.0,0.00150684,7]
[325072208,1714511449901,-1000.0,0.00150684,7]
[325072210,1714511449910,-1000.0,0.00150684,7]
[325072212,1714511449919,-1000.0,0.00150684,7]
[325072214,1714511449928,-1000.0,0.00150684,7]
[325072216,1714511449938,-1000.0,0.00150684,7]
[325072218,1714511449947,-1000.0,0.00150684,7]
[325072220,1714511449957,-1000.0,0.00150684,7]
[325072222,1714511449966,-1000.0,0.00150684,7]
[325072225,1714511449976,-1000.0,0.00150684,7]
[325072227,1714511449985,-1000.0,0.00150684,7]
[325072228,1714511449994,-1000.0,0.00150684,7]
[325072230,1714511450003,-1000.0,0.00150684,7]
[325072232,1714511450012,-951.8411194,0.00150684,7]
[325072234,1714511450022,-182.122785,0.00155592,120]
[325072237,1714511450036,-160.56509,0.00156164,2]
[325072238,1714511450047,-160.571437,0.0016116,2]
[325072240,1714511450056,-10111.56399577,0.00164,120]
[325072242,1714511450067,-500.0,0.00168764,120]
[325072244,1714511450077,-160.382365,0.00170388,2]
[325072246,1714511450087,-151.0,0.0018074,120]
[325072248,1714511450096,-443260.68355536,0.001899,120]
[325072317,1714511450776,-5415.58999999,0.001899,120]